fUST/lending_fUST_20251029
["ID","MTS","AMOUNT","RATE_DAILY","PERIOD"]
[392600313,1761727839301,-501.25727609,0.00021917,2]
[392600314,1761727839310,-815.03,0.00021917,2]
[392600315,1761727839319,-500.0,0.00021917,2]
[392600316,1761727839328,-3115.3,0.00021917,2]
[392600317,1761727839338,-500.0,0.00021917,2]
[392600318,1761727839347,-500.0,0.00021917,2]
[392600319,1761727839356,-226.83780529,0.00021917,2]
[392600320,1761727839365,-500.0,0.00021917,2]
[392600321,1761727839374,-500.0,0.00021917,2]
[392600322,1761727839384,-500.0,0.00021917,2]
[392600323,1761727839393,-530.15239729,0.00021917,2]
[392600324,1761727839403,-500.0,0.00021917,2]
[392600325,1761727839412,-1010.83,0.00021917,2]
[392600326,1761727839422,-500.0,0.00021917,2]
[392600327,1761727839431,-500.0,0.00021917,2]
[392600328,1761727839441,-687.41,0.00021917,2]
[392600329,1761727839450,-500.0,0.00021917,2]
[392600330,1761727839459,-500.0,0.00021917,2]
[392600331,1761727839469,-500.0,0.00021917,2]
[392600332,1761727839478,-639.73,0.00021917,2]
[392600333,1761727839487,-500.0,0.00021917,2]
[392600334,1761727839496,-1012.93,0.00021917,2]
[392600335,1761727839505,-500.0,0.00021917,2]
[392600336,1761727839514,-500.0,0.00021917,2]
[392600337,1761727839523,-500.0,0.00021917,2]
[392600338,1761727839534,-500.0,0.00021917,2]
[392600339,1761727839543,-500.0,0.00021917,2]
[392600340,1761727839552,-731.46,0.00021917,2]
[392600341,1761727839562,-580.46,0.00021917,2]
[392600342,1761727839572,-952.37,0.00021917,2]
[392600343,1761727839581,-500.0,0.00021917,2]
[392600344,1761727839591,-500.0,0.00021917,2]
[392600345,1761727839602,-500.0,0.00021917,2]
[392600346,1761727839611,-1461.39,0.00021917,2]
[392600347,1761727839620,-399.45345,0.00021917,7]
[392600348,1761727839630,-500.0,0.00021917,2]
[392600349,1761727839639,-399.45345,0.00021917,7]
[392600350,1761727839648,-500.0,0.00021917,2]
[392600351,1761727839657,-399.45345,0.00021917,7]
[392600352,1761727839667,-500.0,0.00021917,2]
[392600353,1761727839677,-399.45345,0.00021917,7]
[392600354,1761727839686,-500.0,0.00021917,2]
[392600355,1761727839695,-500.0,0.00021917,2]
[392600356,1761727839705,-1491.13,0.00021917,2]
[392600357,1761727839715,-500.0,0.00021917,2]
[392600358,1761727839723,-500.0,0.00021917,2]
[392600359,1761727839733,-500.0,0.00021917,2]
[392600360,1761727839742,-500.0,0.00021917,2]
[392600361,1761727839751,-500.0,0.00021917,2]
[392600362,1761727839760,-559.06,0.00021917,2]
[392600363,1761727839769,-500.0,0.00021917,2]
[392600364,1761727839778,-2455.3,0.00021917,2]
[392600365,1761727839787,-500.0,0.00021917,2]
[392600366,1761727839796,-589.62,0.00021917,2]
[392600367,1761727839805,-500.0,0.00021917,2]
[392600368,1761727839814,-500.0,0.00021917,2]
[392600369,1761727839823,-1107.21,0.00021917,2]
[392600370,1761727839832,-500.0,0.00021917,2]
[392600371,1761727839841,-1019.79,0.00021917,2]
[392600372,1761727839850,-500.0,0.00021917,2]
[392600373,1761727839859,-212.90637718,0.00021917,2]
[392600374,1761727839867,-500.0,0.00021917,2]
[392600375,1761727839876,-500.0,0.00021917,2]
[392600376,1761727839885,-500.0,0.00021917,2]
[392600378,1761727839894,-1034.48,0.00021917,2]
[392600380,1761727839903,-500.0,0.00021917,2]
[392600381,1761727839912,-500.0,0.00021917,2]
[392600382,1761727839921,-1318.15,0.00021917,2]
[392600383,1761727839931,-500.0,0.00021917,2]
[392600384,1761727839941,-500.0,0.00021917,2]
[392600385,1761727839951,-500.0,0.00021917,2]
[392600386,1761727839960,-500.0,0.00021917,2]
[392600387,1761727839969,-1153.77,0.00021917,2]
[392600388,1761727839978,-1484.3,0.00021917,2]
[392600389,1761727839987,-1808.22,0.00021917,2]
[392600390,1761727839997,-501.28954729,0.00021917,2]
[392600391,1761727840006,-500.0,0.00021917,2]
[392600392,1761727840015,-709.71,0.00021917,2]
[392600393,1761727840024,-588.63,0.00021917,2]
[392600394,1761727840034,-500.0,0.00021917,2]
[392600395,1761727840048,-1627.02,0.00021917,2]
[392600396,1761727840057,-500.89632393,0.00021917,2]
[392600397,1761727840067,-500.0,0.00021917,2]
[392600398,1761727840076,-535.23,0.00021917,2]
[392600400,1761727840085,-500.0,0.00021917,2]
[392600401,1761727840094,-660.76,0.00021917,2]
[392600402,1761727840103,-1280.57678,0.00021917,7]
[392600403,1761727840112,-1280.57678,0.00021917,7]
[392600404,1761727840122,-1280.57678,0.00021917,7]
[392600405,1761727840131,-500.0,0.00021917,2]
[392600406,1761727840140,-1280.57678,0.00021917,7]
[392600407,1761727840149,-1280.57678,0.00021917,7]
[392600408,1761727840159,-1280.57678,0.00021917,7]
[392600409,1761727840168,-1280.57678,0.00021917,7]
[392600410,1761727840178,-1280.57678,0.00021917,7]
[392600411,1761727840187,-1280.57678,0.00021917,7]
[392600412,1761727840196,-500.0,0.00021917,2]
[392600413,1761727840205,-1280.57678,0.00021917,7]
[392600414,1761727840214,-1280.57678,0.00021917,7]
[392600415,1761727840223,-1485.4554138,0.00021918,7]
[392600416,1761727840232,-368.318418,0.00021918,7]
[392600417,1761727840242,-2560.2117,0.00021969,2]
[392600418,1761727840251,-398.01211551,0.00021973,2]
[392600419,1761727840260,-413.56867548,0.00021973,2]
[392600420,1761727840269,-500.0,0.00021973,2]
[392600421,1761727840279,-500.0,0.00021973,2]
[392600422,1761727840289,-500.0,0.00021973,2]
[392600423,1761727840298,-500.0,0.00021973,2]
[392600424,1761727840307,-500.0,0.00021973,2]
[392600425,1761727840317,-289.2526799,0.00021973,2]
[392600426,1761727840326,-500.0,0.00021973,2]
[392600427,1761727840335,-500.0,0.00021973,2]
[392600429,1761727840434,-500.0,0.00021973,2]
[392600430,1761727840444,-500.0,0.00021973,2]
[392600431,1761727840454,-500.0,0.00021973,2]
[392600432,1761727840463,-500.0,0.00021973,2]
[392600433,1761727840473,-500.0,0.00021973,2]
[392600434,1761727840482,-500.0,0.00021973,2]
[392600435,1761727840492,-202.42650273,0.00021973,2]
[392600436,1761727840502,-44998.83,0.00022,7]
[392600437,1761727840512,-515.72551691,0.00022,5]
[392600438,1761727840521,-218.19942601,0.00022065,2]
[392600439,1761727840530,-500.0,0.00022091,5]
[392600440,1761727840540,-500.0,0.00022091,3]
[392600441,1761727840550,-179.24657785,0.00022091,2]
[392600442,1761727840559,-277.0,0.000221,2]
[392600443,1761727840569,-500.0,0.00022173,2]
[392600444,1761727840578,-500.74063903,0.00022173,2]
[392600445,1761727840587,-257.56037936,0.00022173,2]
[392600446,1761727840597,-238.53755403,0.00022173,2]
[392600447,1761727840607,-500.0,0.00022173,2]
[392600448,1761727840616,-196.26471914,0.00022173,2]
[392600449,1761727840625,-500.0,0.00022173,2]
[392600450,1761727840634,-500.0,0.00022173,2]
[392600451,1761727840644,-500.0,0.00022173,2]
[392600452,1761727840653,-500.0,0.00022173,2]
[392600453,1761727840663,-500.0,0.00022173,2]
[392600454,1761727840672,-500.0,0.00022173,2]
[392600455,1761727840682,-500.0,0.00022173,2]
[392600456,1761727840692,-500.0,0.00022173,2]
[392600457,1761727840701,-247.43547058,0.00022173,2]
[392600458,1761727840710,-500.0,0.00022173,2]
[392600459,1761727840719,-500.0,0.00022173,2]
[392600460,1761727840729,-500.0,0.00022173,2]
[392600461,1761727840738,-500.0,0.00022173,2]
[392600462,1761727840747,-500.0,0.00022173,2]
[392600463,1761727840756,-500.0,0.00022173,2]
[392600464,1761727840765,-500.0,0.00022173,2]
[392600465,1761727840774,-500.0,0.00022173,2]
[392600466,1761727840784,-500.0,0.00022173,2]
[392600467,1761727840794,-500.0,0.00022173,2]
[392600468,1761727840804,-500.0,0.00022173,2]
[392600469,1761727840812,-500.0,0.00022173,2]
[392600470,1761727840822,-500.0,0.00022173,2]
[392600471,1761727840831,-516.66608201,0.00022173,2]
[392600472,1761727840841,-500.0,0.00022173,2]
[392600473,1761727840850,-500.0,0.00022173,2]
[392600474,1761727840859,-500.0,0.00022173,2]
[392600475,1761727840868,-217.02872352,0.00022173,2]
[392600476,1761727840877,-500.0,0.00022173,2]
[392600477,1761727840887,-451.8126859,0.00022173,2]
[392600478,1761727840896,-500.0,0.00022173,2]
[392600479,1761727840906,-500.0,0.00022173,2]
[392600480,1761727840917,-502.05532812,0.00022173,2]
[392600481,1761727840927,-500.0,0.00022173,2]
[392600482,1761727840936,-500.0,0.00022173,2]
[392600483,1761727840946,-500.0,0.00022173,2]
[392600484,1761727840954,-500.0,0.00022191,2]
[392600485,1761727840964,-500.0,0.00022191,2]
[392600486,1761727840974,-500.0,0.00022191,2]
[392600487,1761727840983,-500.0,0.00022191,2]
[392600488,1761727840992,-500.0,0.00022191,2]
[392600489,1761727841002,-500.0,0.00022191,2]
[392600490,1761727841011,-500.0,0.00022191,2]
[392600491,1761727841020,-500.0,0.00022191,2]
[392600492,1761727841031,-604.46,0.00022191,2]
[392600493,1761727841043,-500.0,0.00022191,2]
[392600494,1761727841052,-500.0,0.00022191,2]
[392600495,1761727841061,-500.0,0.00022191,2]
[392600496,1761727841070,-567.49,0.00022191,2]
[392600497,1761727841080,-501.11123895,0.00022191,2]
[392600498,1761727841089,-500.0,0.00022191,2]
[392600499,1761727841100,-500.0,0.00022191,2]
[392600500,1761727841111,-500.0,0.00022191,2]
[392600501,1761727841123,-500.0,0.00022191,2]
[392600502,1761727841133,-500.0,0.00022191,2]
[392600503,1761727841142,-500.0,0.00022191,2]
[392600504,1761727841150,-503.68,0.00022191,2]
[392600505,1761727841159,-500.0,0.00022191,2]
[392600506,1761727841168,-500.0,0.00022191,2]
[392600507,1761727841178,-500.0,0.00022191,2]
[392600508,1761727841187,-500.0,0.00022191,2]
[392600509,1761727841195,-535.01,0.00022191,2]
[392600510,1761727841204,-500.0,0.00022191,2]
[392600511,1761727841213,-500.0,0.00022191,2]
[392600512,1761727841222,-500.0,0.00022191,2]
[392600513,1761727841231,-500.0,0.00022191,2]
[392600514,1761727841240,-500.0,0.00022191,2]
[392600515,1761727841249,-500.0,0.00022191,2]
[392600516,1761727841258,-500.0,0.00022191,2]
[392600517,1761727841267,-500.0,0.00022191,2]
[392600518,1761727841276,-500.0,0.00022191,2]
[392600519,1761727841285,-500.0,0.00022191,2]
[392600520,1761727841297,-516.43,0.00022191,2]
[392600521,1761727841306,-500.0,0.00022191,2]
[392600522,1761727841316,-500.0,0.00022191,2]
[392600523,1761727841325,-500.0,0.00022191,2]
[392600524,1761727841334,-500.0,0.00022191,2]
[392600525,1761727841345,-500.0,0.00022191,2]
[392600526,1761727841354,-500.0,0.00022191,2]
[392600527,1761727841363,-502.49525575,0.00022191,2]
[392600528,1761727841372,-500.0,0.00022191,2]
[392600529,1761727841382,-500.0,0.00022191,2]
[392600530,1761727841391,-677.91,0.00022191,2]
[392600531,1761727841400,-500.0,0.00022191,2]
[392600532,1761727841410,-500.0,0.00022191,2]
[392600533,1761727841419,-500.0,0.00022191,2]
[392600534,1761727841428,-500.0,0.00022191,2]
[392600535,1761727841437,-500.0,0.00022191,2]
[392600536,1761727841447,-726.39,0.00022191,2]
[392600537,1761727841456,-899.3958568,0.00022191,2]
[392600538,1761727841465,-500.0,0.00022191,2]
[392600539,1761727841474,-500.0,0.00022191,2]
[392600540,1761727841484,-500.0,0.00022191,2]
[392600541,1761727841493,-595.01,0.00022191,2]
[392600542,1761727841503,-513.12653006,0.00022191,2]
[392600543,1761727841512,-500.0,0.00022191,2]
[392600544,1761727841521,-2962.64,0.00022191,2]
[392600545,1761727841531,-500.0,0.00022191,2]
[392600546,1761727841542,-500.0,0.00022191,2]
[392600547,1761727841551,-500.0,0.00022191,2]
[392600548,1761727841560,-500.0,0.00022191,2]
[392600549,1761727841570,-500.0,0.00022191,2]
[392600550,1761727841579,-500.0,0.00022191,2]
[392600551,1761727841588,-500.0,0.00022191,2]
[392600552,1761727841597,-500.0,0.00022191,2]
[392600553,1761727841606,-500.0,0.00022191,2]
[392600554,1761727841615,-500.0,0.00022191,2]
[392600555,1761727841625,-500.0,0.00022191,2]
[392600556,1761727841634,-500.0,0.00022191,2]
[392600557,1761727841643,-500.0,0.00022191,2]
[392600558,1761727841652,-500.0,0.00022191,2]
[392600559,1761727841661,-500.0,0.00022191,2]
[392600560,1761727841670,-500.0,0.00022191,2]
[392600561,1761727841679,-552.19,0.00022191,2]
[392600562,1761727841689,-500.0,0.00022191,2]
[392600563,1761727841698,-567.53,0.00022191,2]
[392600564,1761727841707,-500.0,0.00022191,2]
[392600565,1761727841717,-532.82,0.00022191,2]
[392600566,1761727841726,-500.0,0.00022191,2]
[392600567,1761727841735,-500.0,0.00022191,2]
[392600568,1761727841745,-607.45,0.00022191,2]
[392600569,1761727841754,-500.0,0.00022191,2]
[392600570,1761727841763,-540.08,0.00022191,2]
[392600571,1761727841773,-500.0,0.00022191,2]
[392600572,1761727841782,-500.0,0.00022191,2]
[392600573,1761727841792,-500.0,0.00022191,2]
[392600574,1761727841801,-500.0,0.00022191,2]
[392600575,1761727841810,-500.0,0.00022191,2]
[392600576,1761727841819,-522.43532316,0.00022191,2]
[392600577,1761727841828,-500.0,0.00022191,2]
[392600578,1761727841838,-500.0,0.00022191,2]
[392600579,1761727841847,-500.0,0.00022191,2]
[392600580,1761727841857,-500.0,0.00022191,2]
[392600581,1761727841866,-500.0,0.00022191,2]
[392600582,1761727841876,-666.98,0.00022191,2]
[392600583,1761727841972,-500.0,0.00022191,2]
[392600584,1761727841982,-500.0,0.00022191,2]
[392600585,1761727841991,-500.0,0.00022191,2]
[392600586,1761727842000,-500.0,0.00022191,2]
[392600587,1761727842009,-686.48,0.00022191,2]
[392600588,1761727842018,-500.0,0.00022191,2]
[392600589,1761727842027,-1407.21,0.00022191,2]
[392600590,1761727842038,-500.0,0.00022191,2]
[392600591,1761727842048,-500.0,0.00022191,2]
[392600592,1761727842058,-247.53435455,0.00022191,2]
[392600593,1761727842067,-500.0,0.00022191,2]
[392600594,1761727842076,-500.0,0.00022191,2]
[392600595,1761727842085,-1105.48,0.00022191,2]
[392600596,1761727842094,-526.29,0.00022191,2]
[392600597,1761727842104,-500.0,0.00022191,2]
[392600598,1761727842113,-500.0,0.00022191,2]
[392600599,1761727842122,-500.0,0.00022191,2]
[392600600,1761727842132,-500.0,0.00022191,2]
[392600601,1761727842141,-500.0,0.00022191,2]
[392600602,1761727842150,-500.0,0.00022191,2]
[392600603,1761727842160,-500.0,0.00022191,2]
[392600604,1761727842169,-500.0,0.00022191,2]
[392600605,1761727842179,-500.0,0.00022191,2]
[392600606,1761727842188,-500.0,0.00022191,2]
[392600607,1761727842198,-500.0,0.00022191,2]
[392600608,1761727842206,-500.0,0.00022191,2]
[392600609,1761727842215,-500.0,0.00022191,2]
[392600610,1761727842224,-500.0,0.00022191,2]
[392600611,1761727842234,-533.56,0.00022191,2]
[392600612,1761727842243,-645.56,0.00022191,2]
[392600613,1761727842252,-508.41,0.00022191,2]
[392600614,1761727842262,-500.0,0.00022191,2]
[392600615,1761727842271,-500.0,0.00022191,2]
[392600616,1761727842280,-500.0,0.00022191,2]
[392600617,1761727842289,-500.0,0.00022191,2]
[392600618,1761727842298,-659.58,0.00022191,2]
[392600619,1761727842307,-500.0,0.00022191,2]
[392600620,1761727842316,-608.96,0.00022191,2]
[392600621,1761727842325,-500.0,0.00022191,2]
[392600622,1761727842336,-536.84,0.00022191,2]
[392600623,1761727842345,-513.01,0.00022191,2]
[392600624,1761727842354,-500.0,0.00022191,2]
[392600625,1761727842363,-500.0,0.00022191,2]
[392600626,1761727842372,-500.0,0.00022191,2]
[392600627,1761727842381,-426.34837152,0.00022191,2]
[392600628,1761727842390,-500.0,0.00022191,2]
[392600629,1761727842399,-500.0,0.00022191,2]
[392600630,1761727842408,-545.89,0.00022191,2]
[392600631,1761727842417,-500.0,0.00022191,2]
[392600632,1761727842426,-500.0,0.00022191,2]
[392600633,1761727842436,-500.0,0.00022191,2]
[392600634,1761727842445,-500.0,0.00022191,2]
[392600635,1761727842454,-500.0,0.00022191,2]
[392600636,1761727842464,-521.63,0.00022191,2]
[392600637,1761727842473,-868.18,0.00022191,2]
[392600638,1761727842482,-500.0,0.00022191,2]
[392600639,1761727842492,-500.0,0.00022191,2]
[392600640,1761727842501,-500.0,0.00022191,2]
[392600641,1761727842512,-532.41666016,0.00022191,2]
[392600642,1761727842520,-811.15,0.00022191,2]
[392600643,1761727842530,-500.0,0.00022191,2]
[392600644,1761727842538,-500.0,0.00022191,2]
[392600645,1761727842548,-500.0,0.00022191,2]
[392600646,1761727842557,-500.0,0.00022191,2]
[392600647,1761727842566,-500.0,0.00022191,2]
[392600648,1761727842575,-500.0,0.00022191,2]
[392600649,1761727842584,-500.0,0.00022191,2]
[392600650,1761727842593,-582.34742053,0.00022191,2]
[392600651,1761727842602,-500.0,0.00022191,2]
[392600652,1761727842611,-500.0,0.00022191,2]
[392600653,1761727842621,-500.0,0.00022191,2]
[392600654,1761727842630,-500.0,0.00022191,2]
[392600655,1761727842639,-500.0,0.00022191,2]
[392600656,1761727842648,-500.0,0.00022191,2]
[392600657,1761727842658,-500.0,0.00022191,2]
[392600658,1761727842668,-500.0,0.00022191,2]
[392600659,1761727842678,-500.0,0.00022191,2]
[392600660,1761727842688,-500.0,0.00022191,2]
[392600661,1761727842697,-715.57,0.00022191,2]
[392600662,1761727842707,-500.0,0.00022191,2]
[392600663,1761727842716,-500.0,0.00022191,2]
[392600664,1761727842725,-500.0,0.00022191,2]
[392600665,1761727842735,-622.93,0.00022191,2]
[392600666,1761727842744,-500.0,0.00022191,2]
[392600668,1761727842753,-500.0,0.00022191,2]
[392600670,1761727842762,-500.0,0.00022191,2]
[392600671,1761727842771,-601.2,0.00022191,2]
[392600672,1761727842780,-500.0,0.00022191,2]
[392600673,1761727842789,-500.0,0.00022191,2]
[392600674,1761727842798,-500.0,0.00022191,2]
[392600675,1761727842807,-610.56,0.00022191,2]
[392600676,1761727842817,-938.11,0.00022191,2]
[392600677,1761727842826,-595.52,0.00022191,2]
[392600678,1761727842835,-500.0,0.00022191,2]
[392600679,1761727842844,-594.35,0.00022191,2]
[392600680,1761727842853,-500.0,0.00022191,2]
[392600681,1761727842862,-525.64709382,0.00022191,2]
[392600682,1761727842871,-388.14416495,0.00022191,2]
[392600683,1761727842881,-514.18,0.00022191,2]
[392600684,1761727842890,-500.0,0.00022191,2]
[392600685,1761727842899,-500.0,0.00022191,2]
[392600686,1761727842910,-500.0,0.00022191,2]
[392600687,1761727842920,-500.0,0.00022191,2]
[392600688,1761727842930,-500.0,0.00022191,2]
[392600689,1761727842940,-426.17288194,0.00022191,2]
[392600690,1761727842950,-500.0,0.00022191,2]
[392600691,1761727842960,-500.0,0.00022191,2]
[392600692,1761727842969,-500.0,0.00022191,2]
[392600693,1761727842978,-500.0,0.00022191,2]
[392600694,1761727842988,-500.0,0.00022191,2]
[392600695,1761727842997,-619.74,0.00022191,2]
[392600696,1761727843006,-500.0,0.00022191,2]
[392600697,1761727843016,-500.0,0.00022191,2]
[392600698,1761727843026,-500.0,0.00022191,2]
[392600699,1761727843035,-500.0,0.00022191,2]
[392600700,1761727843048,-500.0,0.00022191,2]
[392600701,1761727843057,-500.0,0.00022191,2]
[392600702,1761727843066,-500.0,0.00022191,2]
[392600703,1761727843075,-500.0,0.00022191,2]
[392600704,1761727843085,-500.0,0.00022191,2]
[392600705,1761727843095,-500.0,0.00022191,2]
[392600706,1761727843104,-500.0,0.00022191,2]
[392600707,1761727843114,-500.0,0.00022191,2]
[392600708,1761727843124,-529.83,0.00022191,2]
[392600709,1761727843135,-500.0,0.00022191,2]
[392600710,1761727843145,-500.0,0.00022191,2]
[392600711,1761727843155,-500.0,0.00022191,2]
[392600712,1761727843164,-500.0,0.00022191,2]
[392600713,1761727843173,-500.0,0.00022191,2]
[392600714,1761727843182,-500.0,0.00022191,2]
[392600715,1761727843192,-500.0,0.00022191,2]
[392600716,1761727843201,-539.65,0.00022191,2]
[392600717,1761727843210,-500.0,0.00022191,2]
[392600718,1761727843220,-987.5,0.00022191,2]
[392600719,1761727843230,-13857.5,0.00022191,2]
[392600720,1761727843239,-901.08,0.00022191,2]
[392600721,1761727843248,-500.0,0.00022191,2]
[392600722,1761727843257,-500.0,0.00022191,2]
[392600723,1761727843266,-395.67681072,0.00022191,2]
[392600724,1761727843275,-500.0,0.00022191,2]
[392600725,1761727843284,-500.0,0.00022191,2]
[392600726,1761727843367,-1320.22,0.00022191,2]
[392600727,1761727843384,-547.08,0.00022191,2]
[392600728,1761727843393,-500.0,0.00022191,2]
[392600729,1761727843402,-500.0,0.00022191,2]
[392600730,1761727843411,-500.0,0.00022191,2]
[392600731,1761727843420,-500.0,0.00022191,2]
[392600732,1761727843428,-500.0,0.00022191,2]
[392600733,1761727843437,-500.0,0.00022191,2]
[392600734,1761727843446,-500.0,0.00022191,2]
[392600735,1761727843455,-500.0,0.00022191,2]
[392600736,1761727843464,-698.11,0.00022191,2]
[392600737,1761727843473,-1008.33,0.00022191,2]
[392600738,1761727843481,-500.0,0.00022191,2]
[392600739,1761727843490,-500.0,0.00022191,2]
[392600740,1761727843499,-1334.92,0.00022191,2]
[392600741,1761727843508,-500.0,0.00022191,2]
[392600742,1761727843516,-897.0,0.00022191,2]
[392600743,1761727843525,-500.0,0.00022191,2]
[392600744,1761727843534,-732.31,0.00022191,2]
[392600745,1761727843543,-500.0,0.00022191,2]
[392600746,1761727843552,-500.0,0.00022191,2]
[392600747,1761727843561,-500.0,0.00022191,2]
[392600748,1761727843570,-500.0,0.00022191,2]
[392600749,1761727843578,-500.0,0.00022191,2]
[392600750,1761727843588,-502.4536294,0.00022191,2]
[392600751,1761727843597,-577.15,0.00022191,2]
[392600752,1761727843606,-500.0,0.00022191,2]
[392600753,1761727843614,-500.0,0.00022191,2]
[392600754,1761727843623,-545.72955804,0.00022191,2]
[392600755,1761727843632,-500.0,0.00022191,2]
[392600756,1761727843641,-500.0,0.00022191,2]
[392600757,1761727843651,-500.0,0.00022191,2]
[392600758,1761727843660,-500.0,0.00022191,2]
[392600759,1761727843670,-500.0,0.00022191,2]
[392600760,1761727843680,-500.0,0.00022191,2]
[392600761,1761727843690,-500.0,0.00022191,2]
[392600762,1761727843699,-500.0,0.00022191,2]
[392600763,1761727843709,-869.64,0.00022191,2]
[392600764,1761727843718,-924.51,0.00022191,2]
[392600765,1761727843727,-500.0,0.00022191,2]
[392600766,1761727843736,-580.0,0.00022191,2]
[392600767,1761727843746,-500.0,0.00022191,2]
[392600768,1761727843755,-500.0,0.00022191,2]
[392600769,1761727843764,-623.24754991,0.00022191,2]
[392600770,1761727843773,-500.0,0.00022191,2]
[392600771,1761727843783,-500.0,0.00022191,2]
[392600772,1761727843794,-500.0,0.00022191,2]
[392600773,1761727843803,-2002.89,0.00022191,2]
[392600774,1761727843812,-500.0,0.00022191,2]
[392600775,1761727843821,-500.0,0.00022191,2]
[392600776,1761727843830,-706.59,0.00022191,2]
[392600777,1761727843839,-500.0,0.00022191,2]
[392600778,1761727843848,-500.0,0.00022191,2]
[392600779,1761727843857,-500.0,0.00022191,2]
[392600780,1761727843866,-643.81,0.00022191,2]
[392600781,1761727843875,-540.0,0.00022191,2]
[392600783,1761727843885,-500.0,0.00022191,2]
[392600784,1761727843895,-733.05,0.00022191,2]
[392600786,1761727843904,-815.19,0.00022191,2]
[392600788,1761727843913,-510.02,0.00022191,2]
[392600789,1761727843923,-500.0,0.00022191,2]
[392600790,1761727843932,-1068.51,0.00022191,2]
[392600791,1761727843942,-500.0,0.00022191,2]
[392600792,1761727843951,-500.0,0.00022191,2]
[392600793,1761727843960,-500.0,0.00022191,2]
[392600794,1761727843969,-500.0,0.00022191,2]
[392600795,1761727843979,-500.0,0.00022191,2]
[392600796,1761727843988,-500.0,0.00022191,2]
[392600797,1761727843997,-731.89,0.00022191,2]
[392600798,1761727844006,-500.0,0.00022191,2]
[392600799,1761727844015,-500.0,0.00022191,2]
[392600800,1761727844024,-500.0,0.00022191,2]
[392600801,1761727844033,-500.0,0.00022191,2]
[392600802,1761727844047,-1198.82,0.00022191,2]
[392600803,1761727844056,-500.0,0.00022191,2]
[392600804,1761727844065,-500.0,0.00022191,2]
[392600805,1761727844074,-500.0,0.00022191,2]
[392600806,1761727844084,-500.0,0.00022191,2]
[392600807,1761727844095,-280.45339373,0.00022191,2]
[392600808,1761727844419,-613.5,0.00022191,2]
[392600809,1761727844432,-230.28660627,0.00022191,2]
[392600810,1761727844442,-500.0,0.00022191,2]
[392600811,1761727844451,-723.36,0.00022191,2]
[392600812,1761727844461,-500.0,0.00022191,2]
[392600813,1761727844470,-500.0,0.00022191,2]
[392600814,1761727844479,-500.0,0.00022191,2]
[392600815,1761727844489,-370.69284075,0.00022191,2]
[392600816,1761727844925,-39.18023201,0.00021162,2]
[392600817,1761727844940,-120.81976799,0.00021162,2]
[392600818,1761727844949,-1280.576779,0.00021917,7]
[392600819,1761727844963,-1902.71,0.00021917,2]
[392600820,1761727844984,-368.318418,0.00021918,7]
[392600821,1761727845010,-368.318418,0.00021918,7]